Cogmind - Beta 9.3 @@@ ROGUE MODE // 2019.12.31 @ 09:20:11 Player: Horse Result: Destroyed by Y-45 Defender with Beam Rifle Performance ------------- Evolutions (1) 500 Regions Visited (3) 600 Robots Destroyed (77) 385 Value Destroyed (2023) 2023 Prototype IDs (6) 120 Alien Tech Used (0) 0 Bonus (355) 355 TOTAL SCORE: 3983 Bonus ------- High Alert Combat Kills 176 Follower Combat Kills 204 Friendly Fire -25 Cogmind --------- Core Integrity 0/400 Matter 300/300 Energy 275/275 System Corruption 1% Temperature Cool (9) Movement Walking (120) Location -9/Storage Parts ------- > --- POWER (1) -------- Deuterium Engine > --- PROPULSION (3) --- Aluminum Leg Improved Aluminum Leg Carbon-fiber Leg > --- UTILITY (3) ------ Medium Storage Unit Light Armor Plating Light Armor Plating > --- WEAPON (2) ------- Heavy Mace Katana > --- INVENTORY (8) ---- Cooled Ion Engine Improved Heat Sink Melee Analysis Suite Light Armor Plating Improved EM Shotgun Improved Medium Laser Beamcaster Advanced Beam Cannon Peak State ------------ > --- POWER ------------ Deuterium Engine > --- PROPULSION ------- Aluminum Leg Improved Aluminum Leg Carbon-fiber Leg > --- UTILITY ---------- Medium Storage Unit Medium Storage Unit Medium Storage Unit > --- WEAPON ----------- Improved EM Shotgun Advanced Beam Cannon > --- INVENTORY -------- Cooled Ion Engine Medium Storage Unit Medium Storage Unit Compact Matter Pod Improved Terrain Scanner Power Shielding Utility Shielding Light Armor Plating Light Armor Plating Light Armor Plating Improved Medium Laser Improved Medium Laser Improved Medium Laser Heavy Mace Heavy Mace [Rating: 21] Favorites ----------- Power Light Ion Engine Engine Light Ion Engine Power Core Light Nuclear Core Propulsion Aluminum Leg Leg Aluminum Leg Utility Medium Storage Unit Storage Medium Storage Unit Protection Light Armor Plating Weapon Beam Cannon Energy Gun Particle Gun Energy Cannon Beam Cannon Ballistic Gun Heavy Assault Rifle Ballistic Cannon Light Cannon Impact Weapon Heavy Mace Slashing Weapon Katana Build | -11 -10 -9 -9 ------- Run | Scr Mat Mat Sto Slots Evolved 2 | . . 2 . Power . | . . . . Propulsion 1 | . . 1 . Utility 1 | . . 1 . Weapon . | . . . . Parts Attached 59 | 7 19 17 16 Power 5 | 1 1 3 . Engine 3 | 1 . 2 . Core 2 | . 1 1 . Reactor . | . . . . Propulsion 16 | 2 4 8 2 Treads . | . . . . Leg 16 | 2 4 8 2 Wheel . | . . . . Hover . | . . . . Flight . | . . . . Utility 13 | 2 5 2 4 Device . | . . . . Storage 10 | 2 4 2 2 Processor . | . . . . Hackware . | . . . . Protection 3 | . 1 . 2 Artifact . | . . . . Weapon 25 | 2 9 4 10 Energy Gun 9 | 2 3 . 4 Energy Cannon 9 | . 4 3 2 Ballistic Gun 2 | . 1 1 . Ballistic Cannon 1 | . 1 . . Launcher . | . . . . Special Weapon . | . . . . Impact Weapon 3 | . . . 3 Slashing Weapon 1 | . . . 1 Piercing Weapon . | . . . . Special Melee Weapon . | . . . . Unidentified Prototypes 4 | . . 1 3 Parts Lost 28 | . 12 15 1 Power 3 | . 1 2 . Propulsion 13 | . 4 8 1 Utility . | . . . . Weapon 12 | . 7 5 . Highest Loss Streak 5 | . 5 4 1 Average Slot Usage (%) 93 | . 94 93 90 Engine 7 | . 12 2 11 Core 2 | . 1 3 . Leg 28 | . 24 31 25 Storage 29 | . 27 32 27 Energy Gun 5 | . 7 1 11 Energy Cannon 11 | . 13 9 6 Ballistic Gun 3 | . 4 4 . Ballistic Cannon 3 | . . 6 . Naked Turns . | . . . . Heaviest Build 41 | 14 26 40 41 Greatest Support 38 | 20 20 30 38 Greatest Overweight (x) 3 | 2 2 1 3 Average Overweight (x) . | . . . . Largest Inventory Capacity 16 | 8 12 16 16 Average Capacity 12 | 6 11 14 14 Most Carried 16 | 1 11 15 16 Average Carried 10 | . 8 12 12 Final Capacity 16 | 8 12 16 8 Final Carried 12 | 1 9 12 8 Class Distribution -------------------- 51% | Mutant 48% | Scavenger-Mutant Dominant Class ---------------- Mutant | -10/Materials Scavenger-Mutant | -9/Materials Mutant | -9/Storage Resources | -11 -10 -9 -9 ----------- Run | Scr Mat Mat Sto Matter Collected 1242 | 270 192 606 174 Remotely . | . . . . Salvage Created 2935 | 94 746 1585 510 Parts 167 | 6 37 96 28 Haulers Intercepted 7 | . 2 5 . Recyclers Shooed 2 | . . 1 1 Parts Field Recycled . | . . . . Retrieved Matter . | . . . . Parts Self-Destructed . | . . . . Prevented . | . . . . Kills | -11 -10 -9 -9 ------- Run | Scr Mat Mat Sto Combat Hostiles Destroyed 61 | . 17 36 8 Melee 1 | . . . 1 Guns 23 | . 9 8 6 Cannons 37 | . 8 28 1 Classes Destroyed 10 | 2 3 4 1 Worker 2 | . . 2 . Tunneler 1 | 1 . . . Hauler 7 | . 2 5 . Recycler 5 | 1 1 1 2 Mechanic 1 | . . . 1 Swarmer 15 | . 3 10 2 Grunt 33 | . 14 18 1 Brawler 4 | . . 1 3 Duelist 2 | . . 1 1 Sentry 7 | . . 6 1 Best Kill Streak 7 | 2 4 7 6 Combat Bots Only 7 | . 4 7 4 Max Kills in Single Turn 2 | 1 1 1 2 Gunslinging . | . . . . Exploded . | . . . . Melee 1 | . . . 1 Uniques/NPCs Destroyed . | . . . . Combat | -11 -10 -9 -9 -------- Run | Scr Mat Mat Sto Damage Taken 3470 | . 1248 1806 416 Core 631 | . 224 313 94 Absorbed by Shields . | . . . . Core Remaining (%) 55 | 100 10 . . Volleys Fired 217 | 4 83 107 23 Largest 2 | 2 2 2 2 Hottest 125 | 90 125 103 113 Shots Fired 394 | 8 146 203 37 Gun 171 | 8 77 58 28 Cannon 223 | . 69 145 9 Launcher . | . . . . Special . | . . . . Kinetic 132 | . 25 107 . Thermal 232 | 8 112 87 25 Explosive . | . . . . Electromagnetic 30 | . 9 9 12 Robot Hit Streak 10 | 3 10 9 7 Robot Miss Streak 6 | 1 4 6 4 Penetration Max . | . . . . Secondary Targets 3 | . 1 . 2 Max Gunslinging Chain 1 | . 1 . 1 Shots Hit Robots 252 | 5 99 121 27 Core Hits 99 | 3 29 52 15 Critical Hits 7 | . . 5 2 Critical Kills 2 | . . 2 . Critical Parts Destroyed 4 | . . 2 2 Melee Attacks 5 | . . . 5 Impact 4 | . . . 4 Slashing 1 | . . . 1 Piercing . | . . . . Sneak Attacks 1 | . . . 1 Combat Hostiles . | . . . . Follow-up Attacks 1 | . . . 1 Damage Inflicted 4448 | 71 1439 2260 678 Guns 1485 | 71 659 426 329 Cannons 2697 | . 776 1818 103 Explosions 72 | . . . 72 Melee 174 | . . . 174 Ramming 20 | . 4 16 . Kinetic 1159 | . 192 967 . Thermal 2741 | 71 1117 1208 345 Explosive . | . . . . Electromagnetic 354 | . 126 69 159 Impact 139 | . . . 139 Slashing 35 | . . . 35 Piercing . | . . . . Highest Corruption 1 | . . 1 1 Average Corruption 1 | . . 1 1 Corruption Purged . | . . . . Effects 7 | . . 5 2 Message Errors 2 | . . 1 1 Energy Discharges 1 | . . 1 . Data Loss (minor) 3 | . . 2 1 Weapon Failures 1 | . . 1 . Overload Shots . | . . . . Overflow Damage 93 | . 24 1 68 Projectiles 25 | . 24 1 . Explosions . | . . . . Melee 68 | . . . 68 Knockbacks 7 | . . 6 1 Impact 1 | . . . 1 Kinetic 6 | . . 6 . Secondary . | . . . . Self-Inflicted Damage 33 | . . 5 28 Shots 1 | . . . 1 Rammed 2 | . 1 1 . Targets Rammed 4 | . 2 2 . Kicked 2 | . 1 1 . Crushed . | . . . . Highest Temperature 416 | 120 296 416 414 Average Temperature 96 | 61 100 81 146 Received Heat Transfer 1320 | . 666 546 108 Effects 12 | . 5 4 3 Shutdowns 1 | . . 1 . Energy Bleed 3 | . 1 1 1 Interference 7 | . 4 1 2 Matter Decay 1 | . . 1 . Siege Activations . | . . . . Robots Corrupted . | . . . . Combat Hostiles . | . . . . Parts Fried 1 | . . . 1 Impact Corruptions 3 | . . . 3 Robots Melted 1 | . 1 . . Combat Hostiles . | . . . . Parts Melted 7 | 2 2 3 . Heat Transferred 5514 | 174 2518 2183 639 Parts Sabotaged . | . . . . Parts Stolen . | . . . . Parts Stripped . | . . . . Power Chain Reactions 1 | . . . 1 Missiles Intercepted . | . . . . Alert | -11 -10 -9 -9 ------- Run | Scr Mat Mat Sto Peak Influence 715 | 10 255 715 655 Average Influence 243 | 4 117 336 446 Maximum Alert Level 3 | . 1 3 2 Low Security (%) 57 | 100 85 39 . Level 1 17 | . 14 15 41 Level 2 24 | . . 43 58 Level 3 . | . . 1 . Level 4 . | . . . . Level 5 . | . . . . High Security . | . . . . Max Security . | . . . . Squads Dispatched 15 | . 5 8 2 Investigation 7 | . 2 5 . Extermination . | . . . . Reinforcement 6 | . 3 3 . Assault 2 | . . . 2 Garrison . | . . . . Intercept . | . . . . Construction Impeded . | . . . . Haulers Reinforced . | . . . . Stealth | -11 -10 -9 -9 --------- Run | Scr Mat Mat Sto Distress Signals 6 | . 2 2 2 Communications Jammed . | . . . . Distress Signals . | . . . . Times Spotted 114 | . 37 55 22 Peak Tracking Total 9 | . 6 7 9 Tactical Retreats 7 | . 1 6 . Traps | -11 -10 -9 -9 ------- Run | Scr Mat Mat Sto Traps Triggered 2 | . . 2 . Indirectly . | . . . . Trap Hack Attempts . | . . . . Triggered . | . . . . Disarmed . | . . . . Reprogrammed . | . . . . Reused . | . . . . Traps Extracted . | . . . . Installed . | . . . . Triggered . | . . . . Machines | -11 -10 -9 -9 ---------- Run | Scr Mat Mat Sto Machines Disabled 9 | . 1 7 1 Max in Single Turn 2 | . 1 2 1 Machines Sabotaged . | . . . . Garrisons Compromised . | . . . . Overloaded Fab Kills . | . . . . Fab Network Shutdowns . | . . . . Hacking | -11 -10 -9 -9 --------- Run | Scr Mat Mat Sto Machines Accessed 13 | . 6 5 2 Terminals 11 | . 4 5 2 Fabricators . | . . . . Repair Stations . | . . . . Recycling Units 2 | . 2 . . Scanalyzers . | . . . . Garrison Access . | . . . . Total Hacks 41 | . 16 20 5 Successful 18 | . 7 8 3 Failed 23 | . 9 12 2 Catastrophic 2 | . 1 1 . Database Lockouts . | . . . . Manual 25 | . 8 14 3 Terminals 38 | . 13 20 5 Fabricators . | . . . . Repair Stations . | . . . . Recycling Units 3 | . 3 . . Scanalyzers . | . . . . Garrison Access . | . . . . Terminal Hacks 9 | . 3 5 1 Robot Analysis 1 | . 1 . . Prototype ID Bank 1 | . . 1 . Branch Access Points 1 | . . 1 . Terminal Index 2 | . . 1 1 Alert Level 2 | . 1 1 . Unreport Threat 1 | . . 1 . Locate Traps 1 | . 1 . . Fabricator Hacks . | . . . . Repair Station Hacks . | . . . . Recycling Unit Hacks 2 | . 2 . . Retrieve Components 2 | . 2 . . Scanalyzer . | . . . . Garrison Access Hacks . | . . . . Unauthorized Hacks 20 | . 8 7 5 Terminals 6 | . 1 3 2 Botnet 5 | . 1 3 1 Disrupt 1 | . . . 1 Fabricators . | . . . . Repair Stations . | . . . . Recycling Units 1 | . 1 . . Reject 1 | . 1 . . Scanalyzers . | . . . . Garrison Access . | . . . . Data Cores Recovered . | . . . . Used . | . . . . Hacking Detections 12 | . 5 5 2 Full Trace Events 6 | . 3 3 . Feedback Events 1 | . . 1 . Corruption 1 | . . 1 . Feedback Blocked . | . . . . Robot Schematics Acquired . | . . . . Robots Built . | . . . . Matter . | . . . . Time . | . . . . Total Robot Build Rating . | . . . . Part Schematics Acquired . | . . . . Parts Built . | . . . . Matter . | . . . . Time . | . . . . Total Part Build Rating . | . . . . Parts Repaired . | . . . . Time . | . . . . Parts Recycled . | . . . . Recycled Matter . | . . . . Retrieved Matter . | . . . . Retrieved Components 8 | . 8 . . Parts Scanalyzed . | . . . . Part Schematics Acquired . | . . . . Parts Damaged . | . . . . Bothacking | -11 -10 -9 -9 ------------ Run | Scr Mat Mat Sto Used RIF Installer . | . . . . Robots Hacked . | . . . . Non-combat . | . . . . Combat . | . . . . Robot Hacks Applied . | . . . . Relay Couplers Released . | . . . . Robots Rewired . | . . . . Allies Hacked . | . . . . Hacks Repelled . | . . . . Allies | -11 -10 -9 -9 -------- Run | Scr Mat Mat Sto Total Allies 2 | . . . 2 Largest Group 2 | . . . 2 Highest-Rated Group 62 | . . . 62 Highest-Rated Ally 31 | . . . 31 Total Orders . | . . . . Ally Attacks 46 | . . . 46 Total Damage 721 | . . . 721 Kills 9 | . . . 9 Allies Corrupted . | . . . . Allies Melted . | . . . . Intel | -11 -10 -9 -9 ------- Run | Scr Mat Mat Sto Robot Analysis Total 1 | . 1 . . Derelict Logs Recovered . | . . . . Drone Launches . | . . . . Drone Recoveries . | . . . . Exploration | -11 -10 -9 -9 ------------- Run | Scr Mat Mat Sto Turns Passed 2660 | 70 1151 1177 262 Spaces Moved 1257 | 42 574 535 106 Core 6 | 6 . . . Treads . | . . . . Legs 1251 | 36 574 535 106 Wheels . | . . . . Hover . | . . . . Flight . | . . . . Fastest Speed 50 | 50 120 120 120 Average Speed 141 | 113 149 134 142 Slowest Speed 210 | 150 180 150 210 Overloaded Moves . | . . . . Propulsion Burnouts . | . . . . Robots Hopped . | . . . . Cave-ins Triggered . | . . . . Exploration Rate (%) 44 | 4 96 59 18 Regions Visited 3 Branch Regions 1 Pre-discovered Areas . | . . . . Known Exits Taken 1 | . . 1 . Unknown Exits Taken 2 | 1 1 . . Scrap Searched . | . . . . Spaces Dug . | . . . . Terrain Destroyed 5 | . . . 5 Melee . | . . . . Projectile . | . . . . AOE 5 | . . . 5 Actions | -11 -10 -9 -9 --------- Run | Scr Mat Mat Sto Total 1737 | 53 722 792 170 Wait 131 | . 24 105 2 Move 1254 | 41 573 534 106 Hop . | . . . . Pick Up 43 | 1 15 21 6 Fast Attach 21 | 7 7 2 5 Attach 23 | . 9 14 . Detach 5 | . 2 1 2 Swap 15 | . 3 1 11 Drop 20 | . 4 5 11 Fire 217 | 4 83 107 23 Melee 4 | . . . 4 Ram . | . . . . Kick 4 | . 2 2 . Crush . | . . . . Escape Stasis . | . . . . Rewire . | . . . . Trap . | . . . . Miscellaneous . | . . . . Route ------- -11/Scrapyard -10/Materials (discovered 5 exits: *Mat x3 / [*Min x2]) -9/Materials (discovered 3 exits: [*Mat] / *Min / *Sto) -9/Storage History --------- Turn | Location | Event 9 | -11/Scrapyard | Discovered new exit (range 15) 71 | -11/Scrapyard | Entered Materials 321 | -10/Materials | Build established: Mutant 414 | -10/Materials | Discovered new exit (range 9) 467 | -10/Materials | Lost 3 parts (1n2w) 612 | -10/Materials | Discovered new exit (range 15) 774 | -10/Materials | Core integrity fell below 50% 896 | -10/Materials | Discovered new exit (range 10) 980 | -10/Materials | Discovered new exit (range 5) 1118 | -10/Materials | Core integrity fell below 20% 1158 | -10/Materials | Lost 5 parts (1p2n2w) 1200 | -10/Materials | Discovered new exit (range 16) 1222 | -10/Materials | Entered another Materials area 1222 | -9/Materials | Evolved 2 slots: Propulsion x1, Utility x1 1397 | -9/Materials | Lost 4 parts (1p2n1w) 1434 | -9/Materials | Destroyed 7 combat bots 1537 | -9/Materials | Build established: Scavenger-Mutant 1694 | -9/Materials | Identified exit to Mines 1694 | -9/Materials | Identified exit to Storage 1806 | -9/Materials | Discovered new exit (range 13) 1942 | -9/Materials | Lost 4 parts (2n2w) 1969 | -9/Materials | Core integrity fell below 50% 2330 | -9/Materials | Lost 3 parts (2n1w) 2399 | -9/Materials | Entered Storage 2408 | -9/Storage | Met a pair of Derelict thieves 2491 | -9/Storage | Core integrity fell below 20% 2569 | -9/Storage | Build established: Mutant 2661 | -9/Storage | Destroyed by Y-45 Defender with Beam Rifle Last Messages --------------- 02617_ K-01 Serf destroyed. 02618_ U-05 Engineer builds a Wall. 02618_ K-01 Serf collects debris. 02628_ Y-45 Defender destroyed. 02628_ Door malfunctions. 02628_ K-01 Serf collects debris. 02630_ U-05 Engineer builds a Wall. 02632_ K-01 Serf collects debris. 02637_ Sneak attack on M-13 Machinist. 02637_ Destroyed Wheel. 02637_ Destroyed Lgt. Ion Engine. 02637_ Destroyed Recalibrator. 02637_ M-13 Machinist system corrupted by crushing effect. 02637_ M-13 Machinist knocked back. 02638_ M-13 Machinist system terminally corrupted. 02638_ Wheel fried. 02639_ K-01 Serf collects debris. 02650_ U-05 Engineer repairs door. 02657_ Acquired 20 matter. 02658_ Katana follow-up attack on Y-45 Defender. Map ----- +----------------------------------------------------+ | | | | | | | | | | | | | | | | | | | | | | | | | ??????????????????#############??????????????????? | | ??????????????????# #################### | | ??????????????????# # ! | | ??????????????????# + !* =%! | | ??????????????????# #%=*! | | ??????????????????# #!=%###########+#### | | ??????????????????# ! !% !##??????## #? | | ??????????????????# [%! #!%%=#??????#T #? | | ??????????????????#######+#####%]=###????###" "##? | | ????????????????????????#[#???#[%=%"#????# #? | | ????????????????????????#u#???#*=[""#????#]] #? | | ????????????????????????# #???#=%/T"#????# ]#? | | ??????????????????????### ###?#!!!""#????#] #? | | ??????????????????????# @Y #?#[!!""#????########? | | ??????????????????????# #?#=%!###????????????? | | ??????????????????????# #?#%!%#??????????????? | | ??????????????????????# #?# % #??????????????? | | ??????????????????????# #?#% #??????????????? | | ??????????????????????## ##?#% #??????????????? | | ???????????????????????# #??#% %#??????????????? | | ???????????????????????# #??# % #??????????????? | | ???????????????????????# ^ #??#% #??????????????? | | ???????????????????????+ ?? #??????????????? | | ???????????????????????# ? %%%#??????????????? | | ???????????????????????# %#??????????????? | | ???????????????????????# r#### #??????????????? | | ???????????????????????# #??# #??????????????? | | ???????????????????????? #??# #??????????????? | | ???????????????????????? T??? ???????????????? | | ???????????????????????? #??? ???????????????? | | ???????????????????????? #??? ???????????????? | | ???????????????????????? #?????????????????????? | | ???????????????????????? #?????????????????????? | | ???????????????????????? ??????????????????????? | | ?????????????????????????????????????????????????? | | ?????????????????????????????????????????????????? | | ?????????????????????????????????????????????????? | | ?????????????????????????????????????????????????? | +----------------------------------------------------+ Best States ------------- Heat Dissipation 28 Energy Generation 14 Energy Capacity 280 Matter Stores 300 Matter Capacity 300 Sight Range 16 Terrain Scan Density 10 Armor Coverage 300 Evasion (%) 40 Item Schematics ----------------- None Robot Schematics ------------------ None Fabricated ------------ Nothing Alien Tech Used ----------------- None Achievements -------------- None Challenges ------------ None Game ------ Seed RiotGrenadeReconfigurator Manual? 0 Play Time 00:31:30 Cumulative 845.5 hours Start 2019.12.28 @ 18:36:44 End 2019.12.31 @ 09:20:11 Sessions 2 Manual Loads 0 Difficulty Rogue Special Mode None Game No. 311 Rogue 311 Adventurer 0 Explorer 0 Win Type - Total 12 Types 11/0/1/0/0/0/0 Lore% 77 Gallery% 87 Achievement% 69 Wizard Run 0 Options --------- ASCII 0 Keyboard 1 Movement Numpad Keybinds 0 Fullscreen 2 Font 18/SmallcapsGlow Map View 112x50 Tactical HUD 1 Map Filters NONE Filters NONE Steam 1 RUN: f379f859-21b2-493b-83c2-0acbce2ad6a0